fUSD/lending_fUSD_20250806
["ID","MTS","AMOUNT","RATE_DAILY","PERIOD"]
[377546818,1754439056185,-2323.02,0.00035616,14]
[377546819,1754439056194,-2323.02,0.00035616,14]
[377546820,1754439056205,-2323.02,0.00035616,14]
[377546821,1754439056215,-617.69,0.00035616,14]
[377546822,1754439056224,-1569.75,0.00035616,14]
[377546823,1754439056233,-2323.02,0.00035616,14]
[377546824,1754439056243,-2323.02,0.00035616,14]
[377546825,1754439056253,-2323.02,0.00035616,14]
[377546826,1754439056263,-400.0,0.00035616,14]
[377546827,1754439056272,-2323.02,0.00035616,14]
[377546828,1754439056282,-2323.02,0.00035616,14]
[377546829,1754439056292,-2323.02,0.00035616,14]
[377546830,1754439056301,-2323.02,0.00035616,14]
[377546831,1754439056310,-400.0,0.00035616,14]
[377546832,1754439056319,-2323.1965948,0.00035616,14]
[377546833,1754439056328,-468.25,0.00035616,14]
[377546834,1754439056337,-555.36,0.00035616,14]
[377546835,1754439056346,-555.36,0.00035616,14]
[377546836,1754439056356,-555.36,0.00035616,14]
[377546837,1754439056365,-555.36,0.00035616,14]
[377546838,1754439056375,-400.0,0.00035616,14]
[377546839,1754439056384,-3336.81,0.00035616,14]
[377546840,1754439056394,-555.36,0.00035616,14]
[377546841,1754439056403,-2051.42,0.00035616,14]
[377546842,1754439056413,-555.36,0.00035616,14]
[377546843,1754439056422,-406.62328718,0.00035616,14]
[377546844,1754439056431,-650.95,0.00035616,14]
[377546845,1754439056440,-555.36,0.00035616,14]
[377546846,1754439056450,-400.0,0.00035616,14]
[377546847,1754439056460,-555.36,0.00035616,14]
[377546848,1754439056469,-400.0,0.00035616,14]
[377546849,1754439056478,-555.36,0.00035616,14]
[377546850,1754439056488,-1435.98,0.00035616,14]
[377546851,1754439056497,-555.36,0.00035616,14]
[377546852,1754439056507,-555.36,0.00035616,14]
[377546853,1754439056520,-555.36,0.00035616,14]
[377546854,1754439056529,-769.54,0.00035616,14]
[377546855,1754439056539,-555.36,0.00035616,14]
[377546856,1754439056547,-555.36,0.00035616,14]
[377546857,1754439056557,-555.36,0.00035616,14]
[377546858,1754439056566,-435.52,0.00035616,14]
[377546859,1754439056576,-1866.45,0.00035616,14]
[377546860,1754439056586,-555.36,0.00035616,14]
[377546861,1754439056597,-555.36,0.00035616,14]
[377546862,1754439056607,-555.36,0.00035616,14]
[377546863,1754439056616,-555.36,0.00035616,14]
[377546864,1754439056626,-1362.54,0.00035616,14]
[377546865,1754439056635,-555.36,0.00035616,14]
[377546866,1754439056644,-1213.6,0.00035616,14]
[377546867,1754439056653,-555.36,0.00035616,14]
[377546868,1754439056664,-400.0,0.00035616,14]
[377546869,1754439056673,-555.36,0.00035616,14]
[377546870,1754439056682,-464.13654722,0.00035616,14]
[377546871,1754439056692,-555.36,0.00035616,14]
[377546872,1754439056701,-555.45,0.00035616,14]
[377546873,1754439056710,-939.06,0.00035616,14]
[377546874,1754439056720,-400.0,0.00035616,14]
[377546875,1754439056729,-400.0,0.00035616,14]
[377546876,1754439056738,-1507.02,0.00035616,14]
[377546877,1754439056748,-400.0,0.00035616,14]
[377546878,1754439056758,-1174.5,0.00035616,14]
[377546879,1754439056767,-1643.96,0.00035616,14]
[377546880,1754439056778,-400.0,0.00035616,14]
[377546881,1754439056789,-518.76,0.00035616,14]
[377546882,1754439056799,-400.0,0.00035616,14]
[377546883,1754439056808,-498.45,0.00035616,14]
[377546884,1754439056818,-916.05,0.00035616,14]
[377546885,1754439056827,-823.66,0.00035616,14]
[377546886,1754439056837,-500.0,0.00035616,14]
[377546887,1754439056846,-400.0,0.00035616,14]
[377546888,1754439056856,-500.0,0.00035616,14]
[377546889,1754439056866,-400.0,0.00035616,14]
[377546890,1754439056877,-844.14,0.00035616,14]
[377546891,1754439056895,-500.0,0.00035616,14]
[377546892,1754439056904,-500.0,0.00035616,14]
[377546893,1754439056914,-500.0,0.00035616,14]
[377546894,1754439056923,-400.0,0.00035616,14]
[377546895,1754439056932,-500.0,0.00035616,14]
[377546896,1754439056942,-500.0,0.00035616,14]
[377546897,1754439056951,-500.0,0.00035616,14]
[377546898,1754439056964,-500.0,0.00035616,14]
[377546899,1754439056978,-577.48,0.00035616,14]
[377546900,1754439056991,-500.0,0.00035616,14]
[377546901,1754439057002,-591.90407381,0.00035616,14]
[377546902,1754439057016,-400.0,0.00035616,14]
[377546903,1754439057030,-518.22,0.00035616,14]
[377546904,1754439057044,-1362.43,0.00035616,14]
[377546905,1754439057057,-1501.26,0.00035616,14]
[377546906,1754439057070,-520.12,0.00035616,14]
[377546907,1754439057081,-400.0,0.00035616,14]
[377546908,1754439057093,-400.0,0.00035616,14]
[377546909,1754439057106,-764.7,0.00035616,14]
[377546910,1754439057120,-400.0,0.00035616,120]
[377546911,1754439057133,-1729.05,0.00035616,14]
[377546912,1754439057145,-400.0,0.00035616,14]
[377546913,1754439057159,-400.0,0.00035616,14]
[377546914,1754439057173,-829.18,0.00035616,14]
[377546915,1754439057188,-400.0,0.00035616,14]
[377546916,1754439057201,-662.46,0.00035616,14]
[377546917,1754439057218,-516.21,0.00035616,14]
[377546918,1754439057231,-930.75,0.00035616,14]
[377546919,1754439057243,-2685.32,0.00035616,14]
[377546920,1754439057258,-1462.05,0.00035616,14]
[377546921,1754439057272,-2012.98,0.00035616,14]
[377546922,1754439057285,-850.01,0.00035616,14]
[377546923,1754439057298,-1193.27,0.00035616,14]
[377546924,1754439057309,-1325.39,0.00035616,14]
[377546925,1754439057320,-1325.39,0.00035616,14]
[377546926,1754439057334,-1325.39,0.00035616,14]
[377546927,1754439057347,-1325.39,0.00035616,14]
[377546928,1754439057359,-400.0,0.00035616,14]
[377546929,1754439057370,-400.0,0.00035616,14]
[377546930,1754439057382,-1325.39,0.00035616,14]
[377546931,1754439057397,-2024.44,0.00035616,14]
[377546932,1754439057410,-1325.39,0.00035616,14]
[377546933,1754439057421,-1325.39,0.00035616,14]
[377546934,1754439057433,-1168.27,0.00035616,14]
[377546935,1754439057445,-493.97,0.00035616,14]
[377546936,1754439057457,-1325.39,0.00035616,14]
[377546937,1754439057469,-400.0,0.00035616,14]
[377546938,1754439057480,-473.39,0.00035616,14]
[377546939,1754439057492,-1325.39,0.00035616,14]
[377546940,1754439057504,-1000.04,0.00035616,14]
[377546941,1754439057516,-1325.39,0.00035616,14]
[377546942,1754439057528,-1325.39,0.00035616,14]
[377546943,1754439057540,-1325.39,0.00035616,14]
[377546944,1754439057551,-1325.39,0.00035616,14]
[377546945,1754439057565,-400.0,0.00035616,14]
[377546946,1754439057578,-1325.39,0.00035616,14]
[377546947,1754439057591,-1504.57,0.00035616,14]
[377546948,1754439057605,-1325.39,0.00035616,14]
[377546949,1754439057617,-400.0,0.00035616,14]
[377546950,1754439057634,-1325.39,0.00035616,14]
[377546951,1754439057646,-1325.39,0.00035616,14]
[377546952,1754439057658,-400.0,0.00035616,14]
[377546953,1754439057671,-400.0,0.00035616,14]
[377546954,1754439057683,-400.0,0.00035616,14]
[377546955,1754439057695,-1325.39,0.00035616,14]
[377546956,1754439057709,-1325.39,0.00035616,14]
[377546957,1754439057728,-750.25,0.00035616,14]
[377546958,1754439057740,-1325.39,0.00035616,14]
[377546959,1754439057753,-1325.39,0.00035616,14]
[377546960,1754439057765,-1325.39,0.00035616,14]
[377546961,1754439057776,-400.0,0.00035616,14]
[377546962,1754439057789,-1325.39,0.00035616,14]
[377546963,1754439057800,-1325.4331557,0.00035616,14]
[377546964,1754439057812,-1214.74,0.00035616,14]
[377546965,1754439057825,-400.0,0.00035616,14]
[377546966,1754439057836,-400.0,0.00035616,14]
[377546967,1754439057848,-503.4,0.00035616,14]
[377546968,1754439057860,-400.0,0.00035616,14]
[377546969,1754439057872,-464.14,0.00035616,14]
[377546970,1754439057883,-584.18,0.00035616,14]
[377546971,1754439057895,-400.0,0.00035616,14]
[377546972,1754439057906,-400.0,0.00035616,14]
[377546973,1754439057918,-2260.85,0.00035616,14]
[377546974,1754439057938,-686.37,0.00035616,14]
[377546975,1754439057950,-400.0,0.00035616,14]
[377546976,1754439057963,-922.24,0.00035616,14]
[377546977,1754439057976,-400.0,0.00035616,14]
[377546978,1754439057987,-400.0,0.00035616,14]
[377546979,1754439057998,-400.0,0.00035616,14]
[377546980,1754439058010,-400.0,0.00035616,14]
[377546981,1754439058022,-827.37,0.00035616,14]
[377546982,1754439058034,-555.21,0.00035616,14]
[377546983,1754439058046,-608.64,0.00035616,14]
[377546984,1754439058058,-400.0,0.00035616,14]
[377546985,1754439058071,-400.0,0.00035616,14]
[377546986,1754439058083,-665.73,0.00035616,14]
[377546987,1754439058096,-583.31,0.00035616,14]
[377546988,1754439058108,-1450.85,0.00035616,14]
[377546989,1754439058120,-412.3,0.00035616,14]
[377546990,1754439058132,-400.0,0.00035616,14]
[377546991,1754439058144,-400.0,0.00035616,14]
[377546992,1754439058156,-400.0,0.00035616,14]
[377546993,1754439058169,-400.0,0.00035616,14]
[377546994,1754439058181,-515.13,0.00035616,14]
[377546995,1754439058197,-624.92,0.00035616,14]
[377546996,1754439058213,-458.02,0.00035616,14]
[377546997,1754439058225,-1012.2,0.00035616,14]
[377546998,1754439058239,-862.83,0.00035616,14]
[377546999,1754439058253,-400.0,0.00035616,14]
[377547000,1754439058266,-1816.3,0.00035616,14]
[377547001,1754439058279,-871.51,0.00035616,14]
[377547002,1754439058292,-400.0,0.00035616,14]
[377547003,1754439058305,-918.46,0.00035616,14]
[377547004,1754439058319,-555.29,0.00035616,14]
[377547005,1754439058331,-1875.95,0.00035616,14]
[377547006,1754439058344,-400.0,0.00035616,14]
[377547007,1754439058357,-509.45,0.00035616,14]
[377547008,1754439058370,-1453.9,0.00035616,14]
[377547009,1754439058382,-400.0,0.00035616,14]
[377547010,1754439058394,-400.0,0.00035616,14]
[377547011,1754439058406,-452.55,0.00035616,14]
[377547012,1754439058418,-1343.42,0.00035616,14]
[377547013,1754439058430,-4487.46,0.00035616,14]
[377547014,1754439058440,-1000.0,0.00035616,14]
[377547015,1754439058451,-400.0,0.00035616,14]
[377547016,1754439058462,-482.24,0.00035616,14]
[377547017,1754439058473,-686.73,0.00035616,14]
[377547018,1754439058484,-897.5,0.00035616,14]
[377547019,1754439058496,-2119.49,0.00035616,14]
[377547020,1754439058507,-400.0,0.00035616,14]
[377547021,1754439058519,-1200.73,0.00035616,14]
[377547022,1754439058529,-1222.37,0.00035616,14]
[377547023,1754439058540,-400.0,0.00035616,14]
[377547024,1754439058551,-487.83,0.00035616,14]
[377547025,1754439058561,-400.0,0.00035616,14]
[377547026,1754439058572,-1534.08,0.00035616,14]
[377547027,1754439058583,-400.0,0.00035616,14]
[377547028,1754439058595,-1242.5,0.00035616,14]
[377547029,1754439058606,-400.0,0.00035616,14]
[377547030,1754439058617,-1141.69,0.00035616,14]
[377547031,1754439058628,-400.0,0.00035616,14]
[377547032,1754439058638,-1492.38,0.00035616,14]
[377547033,1754439058650,-1097.08,0.00035616,14]
[377547034,1754439058660,-1013.65,0.00035616,14]
[377547035,1754439058671,-1177.83,0.00035616,14]
[377547036,1754439058682,-775.87,0.00035616,14]
[377547037,1754439058693,-400.0,0.00035616,14]
[377547038,1754439058704,-2693.16,0.00035616,14]
[377547039,1754439058715,-400.0,0.00035616,14]
[377547040,1754439058726,-998.55,0.00035616,14]
[377547041,1754439058737,-523.14,0.00035616,14]
[377547042,1754439058749,-228.08739362,0.00035616,14]
[377547043,1754439058760,-400.0,0.00035616,14]
[377547044,1754439058771,-819.66,0.00035616,14]
[377547045,1754439058785,-400.0,0.00035616,14]
[377547046,1754439058798,-1481.88,0.00035616,14]
[377547047,1754439058809,-869.27,0.00035616,14]
[377547048,1754439058820,-400.0,0.00035616,14]
[377547049,1754439058832,-400.0,0.00035616,14]
[377547050,1754439058843,-893.24,0.00035616,14]
[377547051,1754439058854,-400.0,0.00035616,14]
[377547052,1754439058866,-1315.15,0.00035616,14]
[377547053,1754439058878,-1568.87,0.00035616,14]
[377547054,1754439058888,-573.92,0.00035616,14]
[377547055,1754439058899,-400.0,0.00035616,14]
[377547056,1754439058911,-400.0,0.00035616,14]
[377547057,1754439058922,-1875.36,0.00035616,14]
[377547058,1754439058934,-1015.5,0.00035616,14]
[377547059,1754439058945,-400.0,0.00035616,14]
[377547060,1754439058956,-400.0,0.00035616,14]
[377547061,1754439058967,-655.5,0.00035616,14]
[377547062,1754439058979,-415.22,0.00035616,14]
[377547063,1754439058990,-1647.81,0.00035616,14]
[377547064,1754439059001,-400.0,0.00035616,14]
[377547065,1754439059012,-1626.68,0.00035616,14]
[377547066,1754439059024,-400.0,0.00035616,14]
[377547067,1754439059034,-400.0,0.00035616,14]
[377547068,1754439059045,-400.0,0.00035616,14]
[377547069,1754439059056,-400.0,0.00035616,14]
[377547070,1754439059067,-473.86,0.00035616,14]
[377547071,1754439059078,-216.06410133,0.00035616,14]
[377547072,1754439059089,-1610.25,0.00035616,14]
[377547073,1754439059101,-922.44,0.00035616,14]
[377547074,1754439059112,-432.49,0.00035616,14]
[377547075,1754439059123,-400.0,0.00035616,14]
[377547076,1754439059134,-696.78,0.00035616,14]
[377547077,1754439059145,-1252.78,0.00035616,14]
[377547078,1754439059156,-400.0,0.00035616,14]
[377547079,1754439059168,-719.83,0.00035616,14]
[377547080,1754439059179,-400.0,0.00035616,14]
[377547081,1754439059190,-400.0,0.00035616,14]
[377547082,1754439059201,-429.78,0.00035616,14]
[377547083,1754439059215,-400.0,0.00035616,14]
[377547084,1754439059227,-2124.83,0.00035616,14]
[377547085,1754439059238,-400.0,0.00035616,14]
[377547086,1754439059250,-400.0,0.00035616,14]
[377547087,1754439059262,-400.0,0.00035616,14]
[377547088,1754439059273,-2283.23,0.00035616,14]
[377547089,1754439059286,-400.0,0.00035616,14]
[377547090,1754439059297,-400.0,0.00035616,14]
[377547091,1754439059309,-400.0,0.00035616,14]
[377547092,1754439059320,-627.7,0.00035616,14]
[377547093,1754439059330,-400.0,0.00035616,14]
[377547094,1754439059342,-1473.28,0.00035616,14]
[377547095,1754439059353,-716.59,0.00035616,14]
[377547096,1754439059364,-1073.92,0.00035616,14]
[377547097,1754439059376,-1006.61,0.00035616,14]
[377547098,1754439059387,-400.0,0.00035616,14]
[377547099,1754439059398,-487.03,0.00035616,14]
[377547100,1754439059410,-400.0,0.00035616,14]
[377547101,1754439059422,-1460.77,0.00035616,14]
[377547102,1754439059433,-940.13,0.00035616,14]
[377547103,1754439059444,-418.72,0.00035616,14]
[377547104,1754439059455,-475.36,0.00035616,14]
[377547105,1754439059466,-861.4,0.00035616,14]
[377547106,1754439059478,-400.0,0.00035616,14]
[377547107,1754439059489,-1357.95,0.00035616,14]
[377547108,1754439059500,-400.0,0.00035616,14]
[377547109,1754439059512,-400.0,0.00035616,14]
[377547110,1754439059523,-530.31,0.00035616,14]
[377547111,1754439059534,-400.0,0.00035616,14]
[377547112,1754439059545,-2045.78,0.00035616,14]
[377547113,1754439059557,-704.61,0.00035616,14]
[377547114,1754439059568,-400.0,0.00035616,14]
[377547115,1754439059579,-617.59,0.00035616,14]
[377547116,1754439059591,-185.40266576,0.00035616,14]
[377547117,1754439059605,-400.0,0.00035616,14]
[377547118,1754439059617,-1666.82,0.00035616,14]
[377547119,1754439059628,-1141.94,0.00035616,14]
[377547120,1754439059639,-2142.19,0.00035616,14]
[377547121,1754439059650,-400.0,0.00035616,14]
[377547122,1754439059661,-1564.18,0.00035616,14]
[377547123,1754439059674,-400.0,0.00035616,14]
[377547124,1754439059684,-535.32,0.00035616,14]
[377547125,1754439059697,-646.71,0.00035616,14]
[377547126,1754439059708,-1719.3,0.00035616,14]
[377547127,1754439059720,-1882.66,0.00035616,14]
[377547128,1754439059733,-672.34,0.00035616,14]
[377547129,1754439059745,-400.0,0.00035616,14]
[377547130,1754439059757,-4205.53,0.00035616,14]
[377547131,1754439059769,-618.67,0.00035616,14]
[377547132,1754439059780,-400.0,0.00035616,14]
[377547133,1754439059792,-400.0,0.00035616,14]
[377547134,1754439059804,-1519.88,0.00035616,14]
[377547135,1754439059816,-400.0,0.00035616,14]
[377547136,1754439059828,-2603.49,0.00035616,14]
[377547137,1754439059840,-400.0,0.00035616,14]
[377547138,1754439059852,-400.0,0.00035616,14]
[377547139,1754439059863,-403.43,0.00035616,14]
[377547140,1754439059875,-2856.91,0.00035616,14]
[377547141,1754439059886,-494.85,0.00035616,14]
[377547142,1754439059899,-400.0,0.00035616,14]
[377547143,1754439059910,-1262.68,0.00035616,14]
[377547144,1754439059922,-400.0,0.00035616,14]
[377547145,1754439059933,-756.36,0.00035616,14]
[377547146,1754439059944,-606.1,0.00035616,14]
[377547147,1754439059956,-2062.4,0.00035616,14]
[377547148,1754439059967,-1609.2,0.00035616,14]
[377547149,1754439059979,-437.5159095,0.00035616,14]
[377547150,1754439059990,-416.28,0.00035616,14]
[377547151,1754439060001,-400.0,0.00035616,14]
[377547152,1754439060012,-635.76,0.00035616,14]
[377547153,1754439060024,-662.12,0.00035616,14]
[377547154,1754439060035,-400.0,0.00035616,14]
[377547155,1754439060046,-400.0,0.00035616,14]
[377547156,1754439060058,-877.18,0.00035616,14]
[377547157,1754439060069,-896.68,0.00035616,14]
[377547158,1754439060080,-535.7,0.00035616,14]
[377547159,1754439060091,-400.0,0.00035616,7]
[377547160,1754439060102,-2602.41,0.00035616,14]
[377547161,1754439060113,-1459.94,0.00035616,14]
[377547162,1754439060124,-400.0,0.00035616,14]
[377547163,1754439060136,-1119.83,0.00035616,14]
[377547164,1754439060147,-400.0,0.00035616,14]
[377547165,1754439060157,-400.0,0.00035616,14]
[377547166,1754439060169,-1202.47,0.00035616,14]
[377547167,1754439060180,-1202.47,0.00035616,14]
[377547168,1754439060190,-1831.57,0.00035616,14]
[377547169,1754439060204,-1202.47,0.00035616,14]
[377547170,1754439060216,-400.0,0.00035616,14]
[377547171,1754439060227,-1202.47,0.00035616,14]
[377547172,1754439060238,-1202.47,0.00035616,14]
[377547173,1754439060250,-1202.47,0.00035616,14]
[377547174,1754439060261,-366.56240777,0.00035616,14]
[377547175,1754439060271,-1202.47,0.00035616,14]
[377547176,1754439060283,-1202.47,0.00035616,14]
[377547177,1754439060294,-400.0,0.00035616,14]
[377547178,1754439060306,-1446.96,0.00035616,14]
[377547179,1754439060316,-750.95,0.00035616,14]
[377547180,1754439060327,-1202.47,0.00035616,14]
[377547181,1754439060338,-400.0,0.00035616,14]
[377547182,1754439060349,-1202.47,0.00035616,14]
[377547183,1754439060361,-1202.47,0.00035616,14]
[377547184,1754439060372,-553.66,0.00035616,14]
[377547185,1754439060383,-1202.47,0.00035616,14]
[377547186,1754439060395,-400.0,0.00035616,14]
[377547187,1754439060407,-1202.47,0.00035616,14]
[377547188,1754439060420,-602.83,0.00035616,14]
[377547189,1754439060432,-915.21,0.00035616,14]
[377547190,1754439060445,-507.31,0.00035616,14]
[377547191,1754439060457,-412.51,0.00035616,14]
[377547192,1754439060469,-1198.41,0.00035616,14]
[377547193,1754439060482,-532.49,0.00035616,14]
[377547194,1754439060494,-1202.47,0.00035616,14]
[377547195,1754439060506,-1530.11,0.00035616,14]
[377547196,1754439060519,-1202.47,0.00035616,14]
[377547197,1754439060531,-1202.47,0.00035616,14]
[377547198,1754439060543,-400.0,0.00035616,14]
[377547199,1754439060556,-1202.47,0.00035616,14]
[377547200,1754439060568,-1572.7,0.00035616,14]
[377547201,1754439060580,-1202.47,0.00035616,14]
[377547202,1754439060592,-1202.47,0.00035616,14]
[377547203,1754439060606,-1202.47,0.00035616,14]
[377547204,1754439060619,-400.0,0.00035616,14]
[377547205,1754439060632,-1202.47,0.00035616,14]
[377547206,1754439060644,-1480.06,0.00035616,14]
[377547207,1754439060655,-1202.47,0.00035616,14]
[377547208,1754439060668,-1202.47,0.00035616,14]
[377547209,1754439060681,-1202.69247855,0.00035616,14]
[377547210,1754439060694,-1525.71,0.00035616,14]
[377547211,1754439060706,-1262.04,0.00035616,14]
[377547212,1754439060718,-400.0,0.00035616,14]
[377547213,1754439060731,-400.0,0.00035616,14]
[377547214,1754439060743,-500.0,0.00035616,14]
[377547215,1754439060756,-400.0,0.00035616,14]
[377547216,1754439060770,-1823.48,0.00035616,14]
[377547217,1754439060783,-500.0,0.00035616,14]
[377547218,1754439060795,-500.0,0.00035616,14]
[377547219,1754439060807,-1041.37,0.00035616,14]
[377547220,1754439060820,-400.0,0.00035616,14]
[377547221,1754439060832,-500.0,0.00035616,14]
[377547222,1754439060845,-400.0,0.00035616,14]
[377547223,1754439060857,-500.0,0.00035616,14]
[377547224,1754439060870,-499.79,0.00035616,14]
[377547225,1754439060881,-500.0,0.00035616,14]
[377547226,1754439060894,-500.0,0.00035616,14]
[377547227,1754439060905,-500.0,0.00035616,14]
[377547228,1754439061329,-400.0,0.00035616,14]
[377547229,1754439061344,-500.0,0.00035616,14]
[377547230,1754439061355,-1270.65,0.00035616,14]
[377547231,1754439061364,-500.0,0.00035616,14]
[377547232,1754439061374,-500.0,0.00035616,14]
[377547233,1754439061383,-500.0,0.00035616,14]
[377547234,1754439061392,-1977.4,0.00035616,14]
[377547235,1754439061401,-500.0,0.00035616,14]
[377547236,1754439061410,-324.34424777,0.00035616,14]
[377547237,1754439061420,-400.0,0.00035616,10]
[377547238,1754439061429,-1729.29,0.00035616,14]
[377547239,1754439061438,-400.0,0.00035616,14]
[377547240,1754439061447,-400.0,0.00035616,14]
[377547241,1754439061457,-1259.81,0.00035616,14]
[377547242,1754439061466,-678.88,0.00035616,14]
[377547243,1754439061476,-400.0,0.00035616,14]
[377547244,1754439061485,-400.0,0.00035616,14]
[377547245,1754439061494,-2008.67,0.00035616,14]
[377547246,1754439061503,-442.08,0.00035616,14]
[377547247,1754439061513,-950.2,0.00035616,14]
[377547248,1754439061523,-2269.47,0.00035616,14]
[377547249,1754439061532,-1471.62,0.00035616,14]
[377547250,1754439061542,-400.0,0.00035616,14]
[377547251,1754439061552,-1525.67,0.00035616,14]
[377547252,1754439061561,-400.0,0.00035616,14]
[377547253,1754439061570,-2485.1,0.00035616,14]
[377547254,1754439061579,-400.0,0.00035616,14]
[377547255,1754439061589,-2075.84,0.00035616,14]
[377547256,1754439061598,-400.0,0.00035616,14]
[377547257,1754439061608,-500.0,0.00035616,14]
[377547258,1754439061618,-500.0,0.00035616,14]
[377547259,1754439061628,-400.0,0.00035616,14]
[377547260,1754439061638,-500.0,0.00035616,14]
[377547261,1754439061648,-500.0,0.00035616,14]
[377547262,1754439061658,-400.0,0.00035616,14]
[377547263,1754439061667,-1719.3,0.00035616,14]
[377547264,1754439061677,-400.0,0.00035616,14]
[377547265,1754439061688,-1845.73,0.00035616,14]
[377547266,1754439061698,-1443.34,0.00035616,14]
[377547267,1754439061708,-1404.9,0.00035616,14]
[377547268,1754439061717,-400.0,0.00035616,14]
[377547269,1754439061727,-656.18,0.00035616,14]
[377547270,1754439061736,-400.0,0.00035616,14]
[377547271,1754439061745,-670.18,0.00035616,14]
[377547272,1754439061755,-1468.95,0.00035616,14]
[377547273,1754439061764,-1437.49,0.00035616,14]
[377547274,1754439061774,-400.0,0.00035616,14]
[377547275,1754439061783,-1955.03,0.00035616,14]
[377547276,1754439061792,-400.0,0.00035616,14]
[377547277,1754439061802,-1559.01,0.00035616,14]
[377547278,1754439061812,-440.75,0.00035616,14]
[377547279,1754439061822,-400.0,0.00035616,14]
[377547280,1754439061832,-1851.46,0.00035616,14]
[377547281,1754439061842,-521.69,0.00035616,14]
[377547282,1754439061851,-481.73,0.00035616,14]
[377547283,1754439061861,-400.0,0.00035616,14]
[377547284,1754439061870,-875.87,0.00035616,14]
[377547285,1754439061880,-1840.45,0.00035616,14]
[377547286,1754439061889,-1008.6,0.00035616,14]
[377547287,1754439061898,-404.32,0.00035616,14]
[377547288,1754439061908,-821.44,0.00035616,14]
[377547289,1754439061918,-400.0,0.00035616,14]
[377547290,1754439061927,-400.0,0.00035616,14]
[377547291,1754439061936,-721.1,0.00035616,14]
[377547292,1754439061946,-400.0,0.00035616,14]
[377547293,1754439061956,-400.0,0.00035616,14]
[377547294,1754439061966,-400.0,0.00035616,14]
[377547295,1754439061975,-2247.55,0.00035616,14]
[377547296,1754439061984,-400.0,0.00035616,14]
[377547297,1754439061994,-1526.42,0.00035616,14]
[377547298,1754439062003,-1521.45,0.00035616,14]
[377547299,1754439062012,-400.0,0.00035616,14]
[377547300,1754439062021,-1012.75,0.00035616,14]
[377547301,1754439062031,-3059.49,0.00035616,14]
[377547302,1754439062040,-400.0,0.00035616,14]
[377547303,1754439062050,-400.0,0.00035616,14]
[377547304,1754439062059,-1511.23,0.00035616,14]
[377547305,1754439062069,-1554.63,0.00035616,14]
[377547306,1754439062078,-400.0,0.00035616,14]
[377547307,1754439062087,-1517.19,0.00035616,14]
[377547308,1754439062096,-400.0,0.00035616,14]
[377547309,1754439062105,-827.99,0.00035616,14]
[377547310,1754439062115,-400.0,0.00035616,14]
[377547311,1754439062124,-1748.77,0.00035616,14]
[377547312,1754439062133,-931.35,0.00035616,14]
[377547313,1754439062142,-1263.22,0.00035616,14]
[377547314,1754439062152,-927.15,0.00035616,14]
[377547315,1754439062162,-1554.76,0.00035616,14]
[377547316,1754439062172,-400.0,0.00035616,14]
[377547317,1754439062182,-400.0,0.00035616,14]